bitfinex/quotes_BTCUSD_20250812
["timestamp","ask_amount","ask_price","bid_price","bid_amount"]
[1754992784730,4.49396733,118530.0,118520.0,0.00101]
[1754992784975,4.86339358,118530.0,118520.0,0.00101]
[1754992789632,5.23281983,118530.0,118520.0,0.00101]
[1754992790951,5.25026885,118530.0,118520.0,0.00101]
[1754992791768,4.51141635,118530.0,118520.0,0.00101]
[1754992792005,5.25026885,118530.0,118520.0,0.00101]
[1754992795023,5.25126885,118530.0,118520.0,0.00201]
[1754992795224,5.25026885,118530.0,118520.0,0.00104]
[1754992795624,5.25126885,118530.0,118520.0,0.00204]
[1754992798514,5.12274885,118530.0,118520.0,0.00204]
[1754992798733,5.25102885,118530.0,118520.0,0.00204]
[1754992799113,5.30171885,118530.0,118520.0,0.00204]
[1754992799474,5.25102885,118530.0,118520.0,0.00204]
[1754992801729,5.6204551,118530.0,118520.0,0.00204]
[1754992801971,5.25102885,118530.0,118520.0,0.00204]
[1754992802378,5.6204551,118530.0,118520.0,0.00204]
[1754992802590,5.25102885,118530.0,118520.0,0.00204]
[1754992802801,5.45366885,118530.0,118520.0,0.00204]
[1754992814450,4.71481635,118530.0,118520.0,0.00204]
[1754992814660,5.45366885,118530.0,118520.0,0.00204]
[1754992816340,4.71481635,118530.0,118520.0,0.00406]
[1754992816546,5.45366885,118530.0,118520.0,0.00204]
[1754992819287,5.0842426,118530.0,118520.0,0.00204]
[1754992823898,5.45366885,118530.0,118520.0,0.00204]
[1754992829100,5.0842426,118530.0,118520.0,0.00204]
[1754992829748,4.8816026,118530.0,118520.0,0.00204]
[1754992830174,4.51217635,118530.0,118520.0,0.00204]
[1754992830384,4.37873635,118530.0,118520.0,0.00406]
[1754992830623,4.48952733,118530.0,118520.0,0.37348625]
[1754992830856,4.85895358,118530.0,118520.0,0.00638]
[1754992831066,4.48952733,118530.0,118520.0,0.00638]
[1754992831292,4.85895358,118530.0,118520.0,0.00638]
[1754992831519,4.85895358,118530.0,118520.0,0.00406]
[1754992831749,4.48952733,118530.0,118520.0,0.00406]
[1754992831958,4.85895358,118530.0,118520.0,0.00406]
[1754992833812,4.48952733,118530.0,118520.0,0.00406]
[1754992834150,4.85895358,118530.0,118520.0,0.00638]
[1754992834526,4.48952733,118530.0,118520.0,0.00638]
[1754992834938,4.85895358,118530.0,118520.0,0.00638]
[1754992835146,4.85895358,118530.0,118520.0,0.00406]
[1754992836856,4.48952733,118530.0,118520.0,0.00406]
[1754992837058,4.48952733,118530.0,118520.0,0.00638]
[1754992837196,4.48952733,118530.0,118520.0,0.37580625]
[1754992837428,4.23830925,118530.0,118520.0,0.91398039]
[1754992837639,4.23830925,118530.0,118520.0,0.37580625]
[1754992837837,4.23830925,118530.0,118520.0,0.54455414]
[1754992838040,4.21296325,118530.0,118520.0,0.54455414]
[1754992838658,4.21196325,118530.0,118520.0,0.54355414]
[1754992838905,4.21196325,118530.0,118520.0,0.54455414]
[1754992839231,4.21196325,118530.0,118520.0,0.17612789]
[1754992839232,4.29644768,118530.0,118520.0,0.17612789]
[1754992839662,4.29644768,118530.0,118520.0,0.54555414]
[1754992840088,4.29644768,118530.0,118520.0,0.37680625]
[1754992840307,4.29644768,118530.0,118520.0,0.54555414]
[1754992841257,4.08548443,118530.0,118520.0,0.54555414]
[1754992841463,4.13124,118530.0,118520.0,0.17612789]
[1754992841642,4.13124,118530.0,118520.0,0.54555414]
[1754992841980,4.13124,118530.0,118520.0,0.91498039]
[1754992842411,4.13124,118530.0,118520.0,0.54555414]
[1754992843276,4.13124,118530.0,118520.0,0.91498039]
[1754992843491,4.13124,118530.0,118520.0,0.17612789]
[1754992843622,4.13124,118530.0,118520.0,0.54555414]
[1754992843835,4.13124,118530.0,118520.0,0.91498039]
[1754992844973,4.003,118530.0,118520.0,0.91498039]
[1754992845401,4.003,118530.0,118520.0,1.03498039]
[1754992845584,4.13124,118530.0,118520.0,1.03498039]
[1754992846662,4.13124,118530.0,118520.0,0.29612789]
[1754992846869,4.13124,118530.0,118520.0,1.28048255]
[1754992847942,4.13124,118530.0,118520.0,0.78830522]
[1754992849025,4.13124,118530.0,118520.0,1.28048255]
[1754992849256,4.13124,118530.0,118520.0,1.28888616]
[1754992849482,4.13124,118530.0,118520.0,1.41708616]
[1754992851771,4.13124,118530.0,118520.0,1.44242216]
[1754992856052,4.13124,118530.0,118520.0,1.52514541]
[1754992856241,4.003,118530.0,118520.0,1.52514541]
[1754992856376,4.1312,118530.0,118520.0,1.52514541]
[1754992857664,4.003,118530.0,118520.0,1.52514541]
[1754992857812,4.1312,118530.0,118520.0,1.52514541]
[1754992860298,4.1312,118530.0,118520.0,0.54079075]
[1754992860479,4.1312,118530.0,118520.0,1.52514541]
[1754992860912,4.13116,118530.0,118520.0,1.52514541]
[1754992861191,4.00296,118530.0,118520.0,1.52514541]
[1754992861344,4.13116,118530.0,118520.0,1.52514541]
[1754992861901,4.13116,118530.0,118520.0,1.52282541]
[1754992863495,4.00296,118530.0,118520.0,1.52282541]
[1754992863687,4.13116,118530.0,118520.0,1.52282541]
[1754992868719,4.13116,118530.0,118520.0,1.64579283]
[1754992870228,4.13417,118530.0,118520.0,1.64579283]
[1754992871791,4.13626,118530.0,118520.0,1.64579283]
[1754992873576,4.00806,118530.0,118520.0,1.64579283]
[1754992876313,4.00806,118530.0,118520.0,0.53847075]
[1754992876482,4.00806,118530.0,118520.0,1.64579283]
[1754992877470,4.13622,118530.0,118520.0,1.64579283]
[1754992877678,4.00806,118530.0,118520.0,1.64579283]
[1754992880163,4.00296,118530.0,118520.0,1.64579283]
[1754992882136,4.00196,118530.0,118520.0,1.64379283]
[1754992882363,4.00497,118530.0,118520.0,1.64379283]
[1754992882583,4.00597,118530.0,118520.0,1.64679283]
[1754992882800,4.00606,118530.0,118520.0,1.64579283]
[1754992883014,4.00706,118530.0,118520.0,1.64779283]
[1754992883239,4.00706,118530.0,118520.0,1.51959283]
[1754992883478,4.00706,118530.0,118520.0,1.64575283]
[1754992883920,4.00806,118530.0,118520.0,1.64875283]
[1754992884589,4.00706,118530.0,118520.0,1.64575283]
[1754992885021,4.00706,118530.0,118520.0,1.64675283]
[1754992889292,4.00706,118530.0,118520.0,1.64473283]
[1754992889516,4.00706,118530.0,118520.0,1.56200958]
[1754992894695,4.00706,118530.0,118520.0,1.06474222]
[1754992894909,4.67306101,118530.0,118520.0,0.31812389]
[1754992895125,4.50432736,118530.0,118520.0,0.17278789]
[1754992895335,4.13522,118530.0,118520.0,0.17278789]
[1754992895573,4.13522,118530.0,118520.0,0.54189525]
[1754992896204,4.30395365,118530.0,118520.0,0.54189525]
[1754992896984,4.30395365,118530.0,118520.0,0.37314736]
[1754992897203,4.67306101,118530.0,118520.0,0.00404]
[1754992897633,4.30395365,118530.0,118520.0,0.00404]
[1754992901590,4.31244502,118530.0,118520.0,0.00404]
[1754992901984,4.13522,118530.0,118520.0,0.73280149]
[1754992902390,4.13522,118530.0,118520.0,0.73482149]
[1754992902546,4.13522,118530.0,118520.0,0.73280149]
[1754992903118,4.13522,118530.0,118520.0,0.24039829]
[1754992903336,4.13522,118530.0,118520.0,0.73280149]
[1754992904308,4.13522,118530.0,118520.0,0.24039829]
[1754992904555,4.13522,118530.0,118520.0,0.73280149]
[1754992904770,4.13522,118530.0,118520.0,0.24039829]
[1754992904977,4.13522,118530.0,118520.0,0.73280149]
[1754992906657,4.00196,118530.0,118520.0,1.46538469]
[1754992906882,4.0052,118530.0,118520.0,0.97298149]
[1754992907065,4.00718,118530.0,118520.0,0.97298149]
[1754992908731,4.13534,118530.0,118520.0,0.97298149]
[1754992909915,4.13534,118530.0,118520.0,1.46538469]
[1754992909916,4.13012,118530.0,118520.0,1.46538469]
[1754992911023,4.00196,118530.0,118520.0,1.46538469]
[1754992911871,4.00196,118530.0,118520.0,1.54810794]
[1754992912343,4.00196,118530.0,118520.0,1.57344294]
[1754992913176,4.00196,118530.0,118520.0,1.57576294]
[1754992913392,4.00196,118530.0,118520.0,1.57344294]
[1754992913601,4.13008,118530.0,118520.0,1.57344294]
[1754992915562,4.00196,118530.0,118520.0,1.57344294]
[1754992915970,4.00718,118530.0,118520.0,1.57344294]
[1754992916185,4.1353,118530.0,118520.0,0.88526934]
[1754992916396,4.1353,118530.0,118520.0,1.01136934]
[1754992918218,4.00196,118530.0,118520.0,1.50579254]
[1754992918858,4.00196,118530.0,118520.0,1.50811254]
[1754992919267,4.00196,118530.0,118520.0,1.50579254]
[1754992921004,4.00192,118530.0,118520.0,1.50579254]
[1754992921768,4.13526,118530.0,118520.0,0.39084614]
[1754992921970,4.13526,118530.0,118520.0,1.01136934]
[1754992925879,4.13526,118530.0,118520.0,0.88324934]
[1754992926108,4.13526,118530.0,118520.0,1.01136934]
[1754992927873,4.13526,118530.0,118520.0,0.90331109]
[1754992928277,4.13526,118530.0,118520.0,0.77519109]
[1754992928505,4.30399365,118530.0,118520.0,0.77519109]
[1754992928722,4.30399365,118530.0,118520.0,0.28278789]
[1754992928945,4.30399365,118530.0,118520.0,0.77519109]
[1754992931611,4.30399365,118530.0,118520.0,0.17278789]
[1754992932022,4.30399365,118530.0,118520.0,0.00404]
[1754992932649,4.30399365,118530.0,118520.0,0.4964432]
[1754992933470,4.30399365,118530.0,118520.0,0.00404]
[1754992933671,4.30399365,118530.0,118520.0,0.4964432]
[1754992934138,4.30399365,118530.0,118520.0,0.00404]
[1754992934347,4.30399365,118530.0,118520.0,0.4964432]
[1754992935752,4.30399365,118530.0,118520.0,0.00404]
[1754992935953,4.30399365,118530.0,118520.0,0.4964432]
[1754992941257,4.30399365,118530.0,118520.0,0.00404]
[1754992941457,4.30399365,118530.0,118520.0,0.4964432]
[1754992941656,4.30399365,118530.0,118520.0,0.00404]
[1754992941862,4.30399365,118530.0,118520.0,0.4964432]
[1754992944110,4.30399365,118530.0,118520.0,0.66519109]
[1754992946056,4.30399365,118530.0,118520.0,0.17278789]
[1754992946272,4.30399365,118530.0,118520.0,0.66519109]
[1754992948585,4.17587365,118530.0,118520.0,0.66519109]
[1754992948786,4.13526,118530.0,118520.0,1.15759429]
[1754992949007,4.13526,118530.0,118520.0,0.66519109]
[1754992949212,4.13004,118530.0,118520.0,1.15958429]
[1754992949624,4.13528,118530.0,118520.0,1.15958429]
[1754992951760,4.13528,118530.0,118520.0,0.79327109]
[1754992952206,4.30401365,118530.0,118520.0,0.79327109]
[1754992953651,4.30401365,118530.0,118520.0,0.30086789]
[1754992953859,4.30401365,118530.0,118520.0,0.66519109]
[1754992955215,4.30401365,118530.0,118520.0,0.17278789]
[1754992955423,4.30401365,118530.0,118520.0,0.66519109]
[1754992957055,4.30401365,118530.0,118520.0,0.4964432]
[1754992957393,4.17589365,118530.0,118520.0,0.4964432]
[1754992957597,4.30397365,118530.0,118520.0,0.4964432]
[1754992957860,4.30397365,118530.0,118520.0,0.00404]
[1754992958066,4.30397365,118530.0,118520.0,0.4964432]
[1754992959536,4.30397365,118530.0,118520.0,0.00404]
[1754992959948,4.30397365,118530.0,118520.0,0.4964432]
[1754992960150,4.30397365,118530.0,118520.0,0.00404]
[1754992960365,4.30397365,118530.0,118520.0,0.4964432]
[1754992960566,4.30397365,118530.0,118520.0,0.00404]
[1754992960771,4.30397365,118530.0,118520.0,0.4964432]
[1754992963648,4.46918133,118530.0,118520.0,0.00404]
[1754992965246,5.42503355,118530.0,118520.0,0.00404]
[1754992965652,5.45883239,118530.0,118520.0,0.00404]
[1754992966796,5.48233239,118530.0,118520.0,0.00404]
[1754992967006,5.48233239,118530.0,118520.0,0.00304]
[1754992967206,4.98792919,118530.0,118520.0,4e-05]
[1754992967413,5.48133239,118530.0,118520.0,4e-05]
[1754992967609,5.48333239,118530.0,118520.0,0.00104]
[1754992971775,4.99092919,118530.0,118520.0,0.00104]
[1754992971954,5.48333239,118530.0,118520.0,0.00104]
[1754992973635,4.99092919,118530.0,118520.0,0.00104]
[1754992973852,5.48333239,118530.0,118520.0,0.00104]
[1754992974715,4.99092919,118530.0,118520.0,0.00104]
[1754992974910,5.48333239,118530.0,118520.0,0.00104]
[1754992975953,5.01383239,118530.0,118520.0,0.00104]
[1754992977546,5.06452239,118530.0,118520.0,0.00104]
[1754992978781,4.57211919,118530.0,118520.0,0.00104]
[1754992980259,5.06452239,118530.0,118520.0,0.00104]
[1754992980851,4.57211919,118530.0,118520.0,0.00104]
[1754992981052,5.06448239,118530.0,118520.0,0.00104]
[1754992981383,0.16876212,118510.0,118490.0,0.0678104]
[1754992981560,0.29689637,118500.0,118490.0,0.54389651]
[1754992981763,0.29689637,118500.0,118490.0,0.53734062]
[1754992981967,0.29689637,118500.0,118490.0,0.04493742]
[1754992982190,0.29689637,118500.0,118490.0,0.53727636]
[1754992982552,0.29689637,118500.0,118490.0,0.04502021]
[1754992983187,0.29689637,118500.0,118490.0,0.52281362]
[1754992983396,0.29689637,118500.0,118490.0,0.02140712]
[1754992983605,0.29689637,118500.0,118490.0,0.51481032]
[1754992984299,0.29689637,118500.0,118490.0,0.51581032]
[1754992984517,0.29789637,118500.0,118490.0,0.51781032]
[1754992984716,0.29789637,118500.0,118490.0,0.51581032]
[1754992984907,0.29789637,118500.0,118490.0,0.02340712]
[1754992985113,0.29889637,118500.0,118490.0,0.51881032]
[1754992985589,0.29789637,118500.0,118490.0,0.51581032]
[1754992985793,0.29689637,118500.0,118490.0,0.02140712]
[1754992985936,0.29789637,118500.0,118490.0,0.51481032]
[1754992987170,0.29789637,118500.0,118490.0,0.49552025]
[1754992987374,0.35492654,118500.0,118490.0,0.49652025]
[1754992987777,0.29789637,118500.0,118490.0,0.49652025]
[1754992990153,0.29789637,118500.0,118490.0,0.00411705]
[1754992990385,0.29789637,118500.0,118490.0,0.49652025]
[1754992991917,0.30299637,118500.0,118490.0,0.00214705]
[1754992992077,0.30299637,118500.0,118490.0,0.49455025]
[1754992992487,0.30299637,118500.0,118490.0,0.49662025]
[1754992993299,0.30299637,118500.0,118490.0,0.00421705]
[1754992994596,0.36021654,118500.0,118490.0,0.00421705]
[1754992994795,0.30299637,118500.0,118490.0,0.00421705]
[1754992996157,0.30299637,118500.0,118490.0,0.00214705]
[1754992996744,0.30299637,118500.0,118490.0,0.3716096]
[1754992997542,0.30299637,118500.0,118490.0,0.00214705]
[1754992997750,0.38571962,118500.0,118490.0,0.00214705]
[1754992997972,1.51155629,118500.0,118490.0,0.00214705]
[1754992998152,1.30063017,118500.0,118490.0,0.00214705]
[1754992998761,1.30063017,118500.0,118490.0,0.00014705]
[1754992998943,1.29963017,118500.0,118490.0,0.00014705]
[1754992999147,1.74963017,118500.0,118490.0,0.00114705]
[1754992999803,1.01070507,118500.0,118490.0,0.00114705]
[1754993000004,1.74963017,118500.0,118490.0,0.00114705]
[1754993000317,1.75163017,118500.0,118490.0,0.00214705]
[1754993000717,1.50548754,118500.0,118490.0,0.00214705]
[1754993000920,0.88458507,118500.0,118490.0,0.00214705]
[1754993001163,1.01298507,118500.0,118490.0,0.00214705]
[1754993001369,0.94483605,118500.0,118490.0,0.00214705]
[1754993001990,1.43761852,118500.0,118490.0,0.00214705]
[1754993002548,0.94483605,118500.0,118490.0,0.00214705]
[1754993002752,0.16880486,118480.0,118470.0,0.67236244]
[1754993002953,0.29724486,118480.0,118470.0,0.49731952]
[1754993003960,0.29724486,118480.0,118470.0,0.66613863]
[1754993004152,0.29824486,118480.0,118470.0,0.66613863]
[1754993004962,0.30024486,118480.0,118470.0,0.66713863]
[1754993005365,0.003,118480.0,118470.0,0.66713863]
[1754993005566,0.13148,118480.0,118470.0,0.66713863]
[1754993005774,0.13156,118480.0,118470.0,0.78713863]
[1754993014195,0.13156,118480.0,118470.0,0.29435616]
[1754993014406,0.13156,118480.0,118470.0,0.78713863]
[1754993015893,0.13156,118480.0,118470.0,0.29203616]
[1754993016097,0.13156,118480.0,118470.0,0.78481863]
[1754993016298,0.13156,118480.0,118470.0,0.29203616]
[1754993016630,0.13156,118480.0,118470.0,0.78481863]
[1754993016836,0.30036486,118480.0,118470.0,0.28996616]
[1754993017006,0.30546486,118480.0,118470.0,0.00114705]
[1754993021635,0.43561366,118480.0,118470.0,0.00114705]
[1754993026353,0.38818811,118480.0,118470.0,0.00114705]
[1754993028824,0.38808397,118480.0,118470.0,0.00114705]
[1754993035684,0.38512397,118480.0,118470.0,0.16996616]
[1754993035894,0.38806397,118480.0,118470.0,0.4938733]
[1754993036090,0.38806397,118480.0,118470.0,0.00109083]
[1754993036301,0.38806397,118480.0,118470.0,0.4938733]
[1754993036506,0.38806397,118480.0,118470.0,0.66269241]
[1754993036709,0.38806397,118480.0,118470.0,0.4938733]
[1754993036863,0.38806397,118480.0,118470.0,0.00109083]
[1754993037066,0.38806397,118480.0,118470.0,0.16990994]
[1754993037283,0.38806397,118480.0,118470.0,0.00109083]
[1754993039100,0.43441152,118480.0,118470.0,0.00109083]
[1754993040487,1.37319399,118480.0,118470.0,0.00109083]
[1754993040694,0.88041152,118480.0,118470.0,0.00109083]
[1754993040927,1.37319399,118480.0,118470.0,0.00109083]
[1754993041168,0.88041152,118480.0,118470.0,0.00109083]
[1754993041391,1.37319399,118480.0,118470.0,0.00109083]
[1754993041620,0.88041152,118480.0,118470.0,0.00109083]
[1754993041849,1.37319399,118480.0,118470.0,0.00109083]
[1754993042771,0.88041152,118480.0,118470.0,0.00109083]
[1754993042976,0.88065152,118480.0,118470.0,0.00109083]
[1754993043397,1.37343399,118480.0,118470.0,0.00109083]
[1754993043638,0.88065152,118480.0,118470.0,0.00109083]
[1754993045288,0.88077152,118480.0,118470.0,0.4938733]
[1754993045954,0.88077152,118480.0,118470.0,0.00109083]
[1754993046812,0.66404827,118480.0,118470.0,0.4958733]
[1754993047052,0.74662072,118480.0,118470.0,0.66469241]
[1754993047261,0.74662072,118480.0,118470.0,0.66701241]
[1754993047262,0.57785586,118480.0,118470.0,0.66701241]
[1754993047477,0.74666072,118480.0,118470.0,0.66701241]
[1754993047891,0.74666072,118480.0,118470.0,0.17190994]
[1754993048094,0.74666072,118480.0,118470.0,0.66469241]
[1754993050065,0.30066072,118480.0,118470.0,0.66469241]
[1754993050408,0.13185586,118480.0,118470.0,0.17190994]
[1754993050614,0.13185586,118480.0,118470.0,0.66469241]
[1754993051273,0.30066072,118480.0,118470.0,0.66469241]
[1754993051505,0.13185586,118480.0,118470.0,0.66469241]
[1754993052012,0.30066072,118480.0,118470.0,0.66469241]
[1754993053337,0.30585072,118480.0,118470.0,0.00309083]
[1754993053576,0.30585072,118480.0,118470.0,0.00109083]
[1754993053795,0.38857397,118480.0,118470.0,0.00109083]
[1754993055671,0.38857397,118480.0,118470.0,0.00305083]
[1754993060554,0.38857397,118480.0,118470.0,0.4958333]
[1754993061135,0.38857397,118480.0,118470.0,0.00305083]
[1754993061336,0.38857397,118480.0,118470.0,0.4938733]
[1754993062343,0.13165586,118480.0,118470.0,0.17186994]
[1754993062560,0.13165586,118480.0,118470.0,0.66465241]
[1754993062970,0.00289586,118480.0,118470.0,0.66465241]
[1754993063176,0.30078072,118480.0,118470.0,0.66465241]
[1754993063383,0.30395072,118480.0,118470.0,0.66465241]
[1754993063590,0.30597072,118480.0,118470.0,0.17186994]
[1754993063793,0.38869397,118480.0,118470.0,0.00109083]
[1754993064875,0.4711784,118480.0,118470.0,0.00109083]
[1754993070490,0.96396087,118480.0,118470.0,0.00109083]
[1754993070982,0.4711784,118480.0,118470.0,0.00109083]
[1754993071562,0.96396087,118480.0,118470.0,0.00109083]
[1754993071965,1.00676389,118480.0,118470.0,0.00109083]
[1754993072167,1.02977389,118480.0,118470.0,0.00109083]
[1754993073264,1.02887803,118480.0,118470.0,0.00109083]
[1754993073468,1.5216605,118480.0,118470.0,0.00109083]
[1754993073671,1.02887803,118480.0,118470.0,0.00109083]
[1754993074053,0.53409556,118480.0,118470.0,9.083e-05]
[1754993074257,1.02687803,118480.0,118470.0,9.083e-05]
[1754993074457,1.02887803,118480.0,118470.0,0.00109083]
[1754993074900,1.02987803,118480.0,118470.0,0.00209083]
[1754993075386,0.53709556,118480.0,118470.0,0.00209083]
[1754993075752,1.02987803,118480.0,118470.0,0.00209083]
[1754993077120,1.00686803,118480.0,118470.0,0.00209083]
[1754993078461,1.5226605,118480.0,118470.0,0.00209083]
[1754993079216,0.53709556,118480.0,118470.0,0.00209083]
[1754993079453,1.3935805,118480.0,118470.0,0.00209083]
[1754993079669,1.5231805,118480.0,118470.0,0.00209083]
[1754993079912,0.18628238,118460.0,118450.0,0.002]
[1754993080129,0.92891953,118460.0,118450.0,0.00212371]
[1754993080577,0.80237953,118460.0,118450.0,0.00212371]
[1754993080800,0.95738153,118460.0,118450.0,0.00212371]
[1754993081278,0.96138153,118460.0,118450.0,0.00312371]
[1754993081950,0.96973807,118460.0,118450.0,0.00312371]
[1754993082246,0.97173807,118460.0,118450.0,0.00412371]
[1754993083528,1.02243807,118460.0,118450.0,0.00412371]
[1754993084174,1.04792516,118460.0,118450.0,0.00412371]
[1754993084377,0.42550269,118460.0,118450.0,0.00412371]
[1754993084583,0.34095906,118460.0,118450.0,0.00614371]
[1754993084798,0.47059906,118460.0,118450.0,0.00614371]
[1754993085506,0.47059906,118460.0,118450.0,0.00412371]
[1754993086451,0.96338153,118460.0,118450.0,0.00412371]
[1754993090238,1.01408153,118460.0,118450.0,0.00412371]
[1754993090515,0.18631089,118440.0,118430.0,0.03834391]
[1754993090726,1.72248351,118440.0,118430.0,0.03839295]
[1754993091152,1.72558351,118440.0,118430.0,0.00479911]
[1754993091360,0.23702514,118430.0,118420.0,0.0002]
[1754993091574,0.94451086,118430.0,118420.0,0.00068997]
[1754993091777,0.94761086,118430.0,118420.0,0.00068997]
[1754993091983,0.56268282,118430.0,118420.0,0.00068997]
[1754993092405,1.05546529,118430.0,118420.0,0.00068997]
[1754993092602,1.05746529,118430.0,118420.0,0.00068997]
[1754993092758,1.08329325,118430.0,118420.0,0.00068997]
[1754993092963,0.59051078,118430.0,118420.0,0.00068997]
[1754993093171,1.08329325,118430.0,118420.0,0.00068997]
[1754993093521,1.03259325,118430.0,118420.0,0.00068997]
[1754993093731,0.61042118,118430.0,118420.0,0.00068997]
[1754993093948,1.10320365,118430.0,118420.0,0.00068997]
[1754993094201,1.10332365,118430.0,118420.0,0.00068997]
[1754993096072,1.03571325,118430.0,118420.0,0.00068997]
[1754993096305,0.54293078,118430.0,118420.0,0.00068997]
[1754993096511,1.03571325,118430.0,118420.0,0.00068997]
[1754993099877,0.54293078,118430.0,118420.0,0.00068997]
[1754993100077,1.03571325,118430.0,118420.0,0.00068997]
[1754993100292,0.54293078,118430.0,118420.0,0.00068997]
[1754993100499,1.03571325,118430.0,118420.0,0.00068997]
[1754993100713,0.54293078,118430.0,118420.0,0.00068997]
[1754993101103,1.03571325,118430.0,118420.0,0.00068997]
[1754993102252,0.54293078,118430.0,118420.0,0.00068997]
[1754993102458,1.03571325,118430.0,118420.0,0.00068997]
[1754993102877,0.54293078,118430.0,118420.0,0.00068997]
[1754993103089,1.03571325,118430.0,118420.0,0.00068997]
[1754993103502,0.54293078,118430.0,118420.0,0.00068997]
[1754993103716,1.10332365,118430.0,118420.0,0.00068997]
[1754993104571,1.11898223,118430.0,118420.0,0.00068997]
[1754993104991,0.55858936,118430.0,118420.0,0.00068997]
[1754993105198,1.11898223,118430.0,118420.0,0.00068997]
[1754993107323,1.13702369,118430.0,118420.0,0.00068997]
[1754993108137,0.64424122,118430.0,118420.0,0.00068997]
[1754993108501,1.06941329,118430.0,118420.0,0.00068997]
[1754993108699,0.57663082,118430.0,118420.0,0.00068997]
[1754993109127,1.06941329,118430.0,118420.0,0.00068997]
[1754993109757,0.57663082,118430.0,118420.0,0.00068997]
[1754993109956,0.93929329,118430.0,118420.0,0.00277997]
[1754993110179,1.07061329,118430.0,118420.0,0.00277997]
[1754993110586,0.93929329,118430.0,118420.0,0.00277997]
[1754993110789,0.55474936,118430.0,118420.0,0.00281997]
[1754993110992,0.5289214,118430.0,118420.0,0.00072997]
[1754993111320,1.02701626,118430.0,118420.0,0.00072997]
[1754993111524,0.5522869,118430.0,118420.0,0.00072997]
[1754993111730,0.53661593,118430.0,118420.0,0.00072997]
[1754993111960,0.55228687,118430.0,118420.0,0.00072997]
[1754993112155,1.04506934,118430.0,118420.0,0.00072997]
[1754993112366,0.55228687,118430.0,118420.0,0.00072997]
[1754993112589,1.0709429,118430.0,118420.0,0.00072997]
[1754993114021,0.57816043,118430.0,118420.0,0.00072997]
[1754993114223,1.0709429,118430.0,118420.0,0.00072997]
[1754993115037,0.57816043,118430.0,118420.0,0.00072997]
[1754993115243,1.0709429,118430.0,118420.0,0.00072997]
[1754993115970,0.57816043,118430.0,118420.0,0.00072997]
[1754993116175,1.0709429,118430.0,118420.0,0.00072997]
[1754993118364,1.07879432,118430.0,118420.0,0.00072997]
[1754993118986,1.07882623,118430.0,118420.0,0.00072997]
[1754993119381,0.58604376,118430.0,118420.0,0.00072997]
[1754993119594,1.07882623,118430.0,118420.0,0.00072997]
[1754993120256,0.58604376,118430.0,118420.0,0.00072997]
[1754993120463,1.07886519,118430.0,118420.0,0.00072997]
[1754993120879,1.07886515,118430.0,118420.0,0.00072997]
[1754993122791,0.94750515,118430.0,118420.0,0.00072997]
[1754993123002,1.07854515,118430.0,118420.0,0.00072997]
[1754993123434,0.58576268,118430.0,118420.0,0.00072997]
[1754993123643,1.07861248,118430.0,118420.0,0.00072997]
[1754993124679,0.48055656,118430.0,118420.0,0.00281997]
[1754993124891,0.47269215,118430.0,118420.0,0.00281997]
[1754993125099,0.47269215,118430.0,118420.0,0.00513997]
[1754993125326,0.47269215,118430.0,118420.0,0.00281997]
[1754993126188,0.43884293,118430.0,118420.0,0.00281997]
[1754993126404,1.01727983,118430.0,118420.0,0.00281997]
[1754993127046,1.01940983,118430.0,118420.0,0.00281997]
[1754993128434,0.52662736,118430.0,118420.0,0.00281997]
[1754993130620,1.01940983,118430.0,118420.0,0.00281997]
[1754993131116,1.01940983,118430.0,118420.0,0.00072997]
[1754993134082,0.52662736,118430.0,118420.0,0.00072997]
[1754993134289,1.01940983,118430.0,118420.0,0.00072997]
[1754993136876,0.52662736,118430.0,118420.0,0.00072997]
[1754993137102,1.01940983,118430.0,118420.0,0.00072997]
[1754993138212,1.03685885,118430.0,118420.0,0.00072997]
[1754993139505,0.54407638,118430.0,118420.0,0.00072997]
[1754993139778,1.03685885,118430.0,118420.0,0.00072997]
[1754993141500,1.03685885,118430.0,118400.0,0.0302]
[1754993141501,0.16890465,118410.0,118400.0,0.0302]
[1754993141736,0.3821879,118410.0,118400.0,0.03236]
[1754993142922,0.3831879,118410.0,118400.0,0.03236]
[1754993143991,0.3851879,118410.0,118400.0,0.03236]
[1754993146401,0.3903779,118410.0,118400.0,0.03236]
[1754993146603,0.3903779,118410.0,118400.0,0.0302]
[1754993146810,0.3903779,118410.0,118400.0,0.03236]
[1754993147760,0.4189825,118410.0,118400.0,0.03236]
[1754993148416,0.4168425,118410.0,118400.0,0.03236]
[1754993149142,0.4189825,118410.0,118400.0,0.03236]
[1754993149590,0.4168425,118410.0,118400.0,0.03236]
[1754993150128,0.4189825,118410.0,118400.0,0.03236]
[1754993152533,0.3903779,118410.0,118400.0,0.03236]
[1754993153554,0.4157449,118410.0,118400.0,0.03236]
[1754993156179,0.4105549,118410.0,118400.0,0.03236]
[1754993156615,0.003,118410.0,118400.0,0.32571039]
[1754993156830,0.13312,118410.0,118400.0,1.43301964]
[1754993157035,0.13312,118410.0,118400.0,1.06321273]
[1754993157887,0.001,118410.0,118400.0,1.06321273]
[1754993158099,0.1312,118410.0,118400.0,1.06321273]
[1754993158305,0.1322,118410.0,118400.0,1.06321273]
[1754993158514,0.002,118410.0,118400.0,1.06321273]
[1754993158753,0.1332,118410.0,118400.0,1.31087507]
[1754993159548,0.1332,118410.0,118400.0,0.81773699]
[1754993160761,0.1332,118410.0,118400.0,0.32459891]
[1754993160957,0.1332,118410.0,118400.0,0.81773699]
[1754993161978,0.1332,118410.0,118400.0,1.31087507]
[1754993162176,0.1332,118410.0,118400.0,0.81773699]
[1754993162806,0.1332,118410.0,118400.0,0.32459891]
[1754993163037,0.1332,118410.0,118400.0,0.81773699]
[1754993163431,0.1332,118410.0,118400.0,0.32459891]
[1754993163646,0.1332,118410.0,118400.0,0.81773699]
[1754993165537,0.1332,118410.0,118400.0,1.31087507]
[1754993166132,0.003,118410.0,118400.0,1.39359832]
[1754993166361,0.1332,118410.0,118400.0,1.39359832]
[1754993166596,0.1332,118410.0,118400.0,1.40375832]
[1754993166597,0.003,118410.0,118400.0,1.40375832]
[1754993166829,0.003,118410.0,118400.0,1.58715632]
[1754993167868,0.003,118410.0,118400.0,1.62960534]
[1754993168076,0.05071003,118420.0,118410.0,1.20518081]
[1754993168290,0.05071003,118420.0,118410.0,0.93228598]
[1754993168505,0.05071003,118420.0,118410.0,0.95708703]
[1754993170439,0.05271003,118420.0,118410.0,0.96008703]
[1754993170642,0.05171003,118420.0,118410.0,0.95808703]
[1754993171057,0.05171003,118420.0,118410.0,0.96008703]
[1754993171489,0.05271003,118420.0,118410.0,0.96208703]
[1754993172325,0.00048843,118430.0,118420.0,0.16889039]
[1754993172549,0.00048843,118430.0,118420.0,1.5051198]
[1754993172754,0.00048843,118430.0,118420.0,1.4824398]
[1754993172975,0.00048843,118430.0,118420.0,0.36592364]